bitfinex/quotes_ETHUSD_20250420
["timestamp","ask_amount","ask_price","bid_price","bid_amount"]
[1745135461693,6.27313217,1594.1,1594.0,5.847]
[1745135463015,6.27291252,1594.2,1594.0,5.847]
[1745135463190,12.54595307,1594.2,1594.0,5.847]
[1745135463396,6.27291252,1594.2,1594.0,6.4317]
[1745135463592,6.27313217,1594.1,1594.0,5.847]
[1745135465109,7.05018828,1594.1,1593.6,58.72408322]
[1745135465310,6.27465788,1593.8,1593.7,5.847]
[1745135465612,12.34465788,1593.8,1593.7,5.847]
[1745135466517,6.07,1593.8,1593.7,6.6634]
[1745135466700,6.07,1593.8,1593.7,13.01926487]
[1745135468589,6.27255189,1594.3,1593.9,4.39158083]
[1745135468787,6.27330158,1594.1,1593.8,3.8164]
[1745135469024,6.27330158,1594.1,1593.7,7.17226487]
[1745135469227,6.27375055,1594.0,1593.9,5.847]
[1745135470119,6.07,1594.3,1593.9,10.2207]
[1745135470296,6.07,1594.3,1594.0,0.789]
[1745135470625,6.07,1594.3,1594.0,5.18044077]
[1745135470840,6.07,1594.3,1594.0,0.789]
[1745135471203,6.07,1594.3,1594.0,5.18044775]
[1745135471405,6.07,1594.3,1594.0,7.08081837]
[1745135471631,6.07,1594.3,1594.0,7.14354661]
[1745135471831,0.1,1594.4,1594.3,5.17964166]
[1745135472036,0.1,1594.4,1594.3,14.02664166]
[1745135472212,0.1,1594.4,1594.3,15.86839753]
[1745135472916,0.1,1594.4,1594.3,11.47775587]
[1745135473233,0.1,1594.4,1594.3,14.08935619]
[1745135473437,0.1,1594.4,1594.3,14.02664166]
[1745135476415,0.1,1594.4,1594.3,14.34287024]
[1745135476619,0.24479559,1594.4,1594.3,14.02664166]
[1745135476814,0.1,1594.4,1594.3,14.02664166]
[1745135477021,0.22888878,1594.4,1594.3,15.86838374]
[1745135477332,0.22931693,1594.4,1594.3,15.86838374]
[1745135477907,6.26948106,1595.1,1594.8,0.7544]
[1745135478109,6.26960706,1595.0,1594.9,5.846]
[1745135478731,7.04490706,1595.0,1594.9,5.846]
[1745135479547,12.33939752,1595.1,1594.9,5.846]
[1745135480559,6.26959247,1595.0,1594.9,5.846]
[1745135480759,6.27056462,1594.8,1594.5,3.0]
[1745135480967,6.27056462,1594.8,1594.6,5.845]
[1745135482455,6.27019244,1594.9,1594.4,54.5014]
[1745135482456,6.27132383,1594.6,1594.4,54.5014]
[1745135482665,7.04610857,1594.7,1594.5,5.845]
[1745135483960,18.61121063,1594.8,1594.5,5.845]
[1745135484142,19.38651063,1594.8,1594.5,5.90771332]
[1745135484335,6.27078901,1594.7,1594.5,5.90771332]
[1745135484735,6.27078901,1594.7,1594.5,5.845]
[1745135484937,6.27116518,1594.6,1594.5,5.845]
[1745135486265,6.27155848,1594.5,1594.4,53.747]
[1745135486671,6.27273867,1594.2,1594.1,5.839]
[1745135489577,6.27251356,1594.3,1594.1,5.839]
[1745135489769,6.27251356,1594.3,1594.1,6.4229]
[1745135490138,6.27267164,1594.3,1594.1,6.4229]
[1745135490438,12.34175446,1594.5,1594.2,0.7519]
[1745135490639,18.61362534,1594.5,1594.2,0.81462295]
[1745135490840,6.27196004,1594.4,1594.2,0.7519]
[1745135491265,12.3418186,1594.5,1594.2,1.53209834]
[1745135491958,6.27208931,1594.4,1594.2,1.46938]
[1745135493148,6.27208931,1594.4,1594.2,2.01182846]
[1745135493378,6.27208931,1594.4,1594.2,1.46938]
[1745135493581,6.27208931,1594.4,1594.2,0.7519]
[1745135493901,12.5443575,1594.4,1594.2,0.7519]
[1745135494572,6.27208931,1594.4,1594.2,0.7519]
[1745135496184,12.34171819,1594.5,1594.2,0.7519]
[1745135496567,12.34171819,1594.5,1594.3,0.06271709]
[1745135497086,18.61356764,1594.5,1594.3,0.06271709]
[1745135497271,12.34171819,1594.5,1594.3,0.06271709]
[1745135497770,0.7701,1594.4,1593.8,6.30225119]
[1745135497975,6.27337681,1594.1,1593.8,7.11815119]
[1745135498198,6.27337681,1594.1,1593.9,3.0]
[1745135499804,6.27337681,1594.1,1593.9,3.06273102]
[1745135501700,6.27274376,1594.2,1593.9,3.06273102]
[1745135502413,6.27274376,1594.2,1593.9,4.45727544]
[1745135503222,6.2736939,1594.0,1593.8,0.8159]
[1745135503424,7.03666588,1594.1,1594.0,5.84]
[1745135503715,6.27427776,1593.9,1593.8,5.84]
[1745135513020,7.05657776,1593.9,1593.8,5.84]
[1745135513617,6.27427776,1593.9,1593.8,5.84]
[1745135514152,12.34427776,1593.9,1593.8,5.84]
[1745135520875,6.07,1593.9,1593.5,0.06274462]
[1745135521025,6.27495978,1593.7,1593.3,59.59]
[1745135521217,6.27495978,1593.7,1593.4,3.0]
[1745135521422,12.549985,1593.7,1593.4,3.0]
[1745135521722,6.27495978,1593.7,1593.4,3.0]
[1745135522123,6.27514407,1593.6,1593.4,3.0]
[1745135522856,6.27514407,1593.6,1593.4,9.33915]
[1745135523058,6.27487724,1593.7,1593.4,9.33915]
[1745135526666,6.2751081,1593.6,1593.4,9.33915]
[1745135527971,6.2751081,1593.6,1593.3,60.86527521]
[1745135531919,0.7823,1593.8,1593.3,64.63091089]
[1745135532201,6.27450627,1593.8,1593.5,0.8177]
[1745135532368,6.07,1594.0,1593.4,0.06275313]
[1745135532369,6.27549419,1593.5,1593.4,0.06275313]
[1745135532570,6.27549419,1593.5,1593.3,59.591]
[1745135532571,6.27572874,1593.5,1593.3,59.591]
[1745135532783,6.27588803,1593.4,1593.3,59.591]
[1745135533875,7.03548803,1593.4,1593.3,59.591]
[1745135537585,13.10548803,1593.4,1593.3,5.837]
[1745135538302,6.27662664,1593.3,1593.0,0.88046608]
[1745135538523,6.27662664,1593.3,1593.2,5.838]
[1745135545933,6.27662664,1593.3,1593.0,0.06276803]
[1745135545934,7.0996064,1593.2,1593.0,0.06276803]
[1745135546150,6.27921496,1592.6,1592.5,0.7782]
[1745135546439,7.10084583,1592.9,1592.5,3.7782]
[1745135546440,0.8229,1592.9,1592.5,3.7782]
[1745135546642,6.27904056,1592.6,1592.5,1.78695154]
[1745135546937,6.27904056,1592.6,1592.4,5.838]
[1745135547246,6.27885122,1592.7,1592.4,5.90079186]
[1745135547447,6.27905885,1592.6,1592.4,5.90079186]
[1745135547645,6.27904633,1592.6,1592.4,5.90079186]
[1745135548214,6.27904633,1592.6,1592.4,5.838]
[1745135548839,6.27943485,1592.5,1592.4,8.838]
[1745135549449,6.27943485,1592.5,1592.4,5.838]
[1745135550011,6.27943485,1592.5,1592.4,5.832]
[1745135550211,6.28022357,1592.3,1592.1,5.932]
[1745135550415,6.28001523,1592.4,1592.1,5.932]
[1745135550616,12.3496914,1592.5,1592.2,3.0]
[1745135550848,6.27983213,1592.4,1592.2,3.0]
[1745135551758,6.27983213,1592.4,1592.1,5.932]
[1745135552067,6.2805548,1592.3,1592.1,5.932]
[1745135552434,6.28003153,1592.4,1592.1,8.932]
[1745135552617,6.28044523,1592.3,1592.1,5.932]
[1745135553262,6.28061801,1592.2,1592.1,5.932]
[1745135554441,7.04277928,1592.3,1592.1,5.932]
[1745135554642,12.56102755,1592.3,1592.1,5.932]
[1745135554845,6.28047928,1592.3,1592.1,5.932]
[1745135555258,12.56102541,1592.3,1592.1,5.932]
[1745135555857,6.28047928,1592.3,1592.1,5.932]
[1745135556245,6.07,1592.5,1592.3,0.7703]
[1745135556420,12.34943753,1592.5,1592.3,0.7703]
[1745135557960,6.07,1592.5,1592.3,0.7703]
[1745135558966,6.07,1592.5,1592.3,4.53834371]
[1745135559454,6.07,1592.5,1592.3,4.53829888]
[1745135559652,6.07,1592.5,1592.4,0.45382989]
[1745135559849,6.27826387,1592.8,1592.4,8.03463011]
[1745135560049,6.27826387,1592.8,1592.5,5.835]
[1745135563165,6.27826387,1592.8,1592.6,0.7832]
[1745135565861,12.34805945,1592.9,1592.6,0.7832]
[1745135566052,18.62626083,1592.9,1592.6,0.7832]
[1745135566557,6.27828643,1592.8,1592.6,0.7832]
[1745135566747,6.27828643,1592.8,1592.6,1.44502]
[1745135567759,12.34805945,1592.9,1592.6,1.44502]
[1745135568684,18.62622164,1592.9,1592.6,1.44502]
[1745135569008,12.34805945,1592.9,1592.6,1.44502]
[1745135569331,18.62624912,1592.9,1592.6,1.44502]
[1745135569529,18.6262578,1592.9,1592.6,0.7832]
[1745135571044,12.34805945,1592.9,1592.6,0.7832]
[1745135571262,12.34805945,1592.9,1592.6,0.84598397]
[1745135572035,6.07,1592.9,1592.8,0.8021]
[1745135572231,12.3472881,1593.1,1592.8,0.8021]
[1745135572432,12.3472881,1593.1,1592.9,5.834]
[1745135578665,6.2774639,1593.0,1592.9,5.834]
[1745135579571,12.3472881,1593.1,1592.9,5.834]
[1745135580373,6.07,1593.1,1592.9,5.834]
[1745135580544,12.34710174,1593.1,1592.9,5.834]
[1745135580740,12.34710174,1593.1,1592.9,6.54516396]
[1745135582155,18.62450665,1593.1,1592.9,6.54516396]
[1745135582573,12.34710174,1593.1,1592.9,6.54516396]
[1745135583544,6.2774639,1593.0,1592.9,6.54516396]
[1745135584173,12.34710174,1593.1,1592.9,6.54516396]
[1745135584376,12.34710174,1593.1,1592.9,5.834]
[1745135584675,6.2774639,1593.0,1592.9,5.834]
[1745135585871,12.34710174,1593.1,1592.9,5.834]
[1745135586880,6.2774639,1593.0,1592.9,5.834]
[1745135588756,18.62449589,1593.1,1592.9,5.834]
[1745135588960,6.2774639,1593.0,1592.9,5.834]
[1745135589782,12.34710174,1593.1,1592.9,5.834]
[1745135590290,6.07,1593.1,1592.9,6.49761]
[1745135590956,6.07,1593.1,1592.9,10.26430773]
[1745135592096,6.07,1593.1,1593.0,6.76647834]
[1745135592393,6.07,1593.1,1593.0,7.52327834]
[1745135595895,6.2760669,1593.4,1593.0,7.58604821]
[1745135596062,6.2760669,1593.4,1593.1,0.75860482]
[1745135596477,13.17179634,1593.5,1593.2,3.776]
[1745135596767,13.17179634,1593.5,1593.3,5.826]
[1745135596993,6.07,1593.5,1593.3,5.826]
[1745135598265,6.07,1593.5,1593.3,9.59176024]
[1745135598466,6.07,1593.5,1593.4,3.95917602]
[1745135598663,12.34487255,1593.7,1593.4,3.95917602]
[1745135598990,6.07,1593.7,1593.5,3.8280364]
[1745135599167,6.07,1593.8,1593.6,3.0]
[1745135599368,6.27403371,1593.9,1593.7,5.826]
[1745135599607,12.54827881,1593.9,1593.7,5.826]
[1745135600012,6.27431296,1593.8,1593.7,5.826]
[1745135600212,6.27470665,1593.7,1593.4,1.72627602]
[1745135600509,6.27470665,1593.7,1593.6,3.0]
[1745135602412,7.04028888,1593.8,1593.6,3.0]
[1745135604023,6.27470665,1593.7,1593.6,3.0]
[1745135604222,7.04028888,1593.8,1593.6,3.0]
[1745135604426,6.27448888,1593.8,1593.6,3.0]
[1745135606011,6.27467507,1593.8,1593.6,3.0]
[1745135606495,6.27470665,1593.7,1593.6,3.0]
[1745135606690,6.2757162,1593.5,1593.2,0.7695]
[1745135606890,6.2757162,1593.5,1593.3,5.825]
[1745135607686,6.07,1593.7,1593.5,3.76522221]
[1745135607886,6.07,1593.7,1593.6,3.0]
[1745135608087,13.12592092,1593.9,1593.6,3.67652222]
[1745135608317,13.12592092,1593.9,1593.7,5.818]
[1745135608917,19.40017637,1593.9,1593.7,5.818]
[1745135609313,19.40013867,1593.9,1593.7,5.818]
[1745135609520,13.12592092,1593.9,1593.7,5.818]
[1745135609717,6.27431296,1593.8,1593.7,5.818]
[1745135614315,13.12592092,1593.9,1593.7,5.818]
[1745135614512,6.27431296,1593.8,1593.7,5.818]
[1745135614719,13.12592092,1593.9,1593.7,5.818]
[1745135615230,6.07,1593.9,1593.7,5.818]
[1745135615608,6.27371464,1594.0,1593.8,0.8235]
[1745135616018,6.27325448,1594.1,1593.8,0.8235]
[1745135616800,12.54673262,1594.1,1593.8,0.8235]
[1745135617228,6.27353903,1594.0,1593.8,0.8235]
[1745135617535,6.27353903,1594.0,1593.7,7.15865599]
[1745135617906,12.54734975,1594.0,1593.7,7.15865599]
[1745135618104,6.27353903,1594.0,1593.7,7.15865599]
[1745135618506,6.27353903,1594.0,1593.7,10.92346728]
[1745135620437,6.27296258,1594.2,1593.8,1.87284673]
[1745135620629,6.27317473,1594.1,1593.8,0.7805]
[1745135620804,6.27291697,1594.2,1593.8,7.6078043]
[1745135621003,6.27291697,1594.2,1593.8,11.37225813]
[1745135621238,12.34253943,1594.3,1593.9,4.54470091]
[1745135622111,6.27287166,1594.2,1593.9,0.7805]
[1745135623038,6.27325783,1594.1,1593.9,0.7805]
[1745135624140,6.27325783,1594.1,1593.9,1.20570787]
[1745135625244,6.27325783,1594.1,1593.8,3.0]
[1745135625411,6.27385556,1594.0,1593.8,3.0]
[1745135625814,6.27385556,1594.0,1593.9,5.816]
[1745135626548,7.05085556,1594.0,1593.9,5.816]
[1745135631030,6.27385556,1594.0,1593.9,5.816]
[1745135631436,12.34385556,1594.0,1593.9,5.816]
[1745135635859,6.07,1594.0,1593.9,5.816]
[1745135637226,12.34327928,1594.1,1593.9,5.816]
[1745135637626,0.7586,1594.0,1593.9,5.816]
[1745135638756,7.03212572,1594.0,1593.9,5.816]
[1745135643362,13.10212572,1594.0,1593.9,5.816]
[1745135651063,12.34352572,1594.0,1593.9,5.816]
[1745135652170,6.07,1594.0,1593.9,5.816]
[1745135652334,6.07,1594.0,1593.9,6.47288]
[1745135652535,6.07,1594.0,1593.9,7.22568]
[1745135654938,6.27327928,1594.1,1593.9,7.22568]
[1745135655970,6.27352572,1594.0,1593.9,7.22568]
[1745135656471,6.27337509,1594.1,1593.9,7.22568]
[1745135656767,12.54685365,1594.1,1593.9,7.22568]
[1745135656967,6.27352572,1594.0,1593.9,6.5688]
[1745135657974,6.27326967,1594.1,1593.9,6.5688]
[1745135658547,12.54669211,1594.1,1593.9,6.5688]
[1745135659266,6.27352572,1594.0,1593.9,6.5688]
[1745135661466,6.27330718,1594.1,1593.9,6.5688]
[1745135661672,12.54674541,1594.1,1593.9,6.5688]
[1745135662376,6.27330718,1594.1,1593.9,6.5688]
[1745135662680,6.27300949,1594.2,1593.9,7.22568]
[1745135663251,12.54605467,1594.2,1593.9,7.22568]
[1745135663749,6.2731442,1594.1,1593.9,7.22568]
[1745135663955,6.07,1594.3,1593.9,7.22568]
[1745135665458,12.3423661,1594.3,1593.9,7.22568]
[1745135665663,6.07,1594.3,1593.9,7.22568]
[1745135666069,6.07,1594.3,1593.9,10.99002192]
[1745135666268,6.07,1594.3,1594.0,1.09900219]
[1745135666647,6.8239,1594.4,1594.0,1.09900219]
[1745135666869,13.09609774,1594.4,1594.0,1.09900219]
[1745135667076,13.09609774,1594.4,1593.9,10.98995898]
[1745135668176,19.3683418,1594.4,1593.9,7.22568]
[1745135668361,13.09609774,1594.4,1593.9,10.98999029]
[1745135670886,13.09609774,1594.4,1594.0,0.7727]
[1745135671557,6.07,1594.4,1594.1,0.7727]
[1745135672175,6.07,1594.5,1594.1,1.23265011]
[1745135672377,6.07,1594.5,1594.3,0.7727]
[1745135672583,6.07,1594.5,1594.3,6.5747]
[1745135673171,12.34168817,1594.5,1594.3,5.802]
[1745135673954,6.07,1594.5,1594.3,5.802]
[1745135675257,6.07,1594.5,1594.3,6.5912]
[1745135675581,6.07,1594.6,1594.3,6.5912]
[1745135676587,6.07,1594.6,1594.3,7.62668055]
[1745135677163,12.34119775,1594.6,1594.3,6.5912]
[1745135678085,6.07,1594.6,1594.3,6.5912]
[1745135679781,18.61269847,1594.6,1594.3,5.802]
[1745135679980,12.34124108,1594.6,1594.3,5.802]
[1745135681067,12.34124108,1594.6,1594.4,0.8121]
[1745135681482,12.34124108,1594.6,1594.3,6.6141]
[1745135681899,6.07,1594.6,1594.3,6.6141]
[1745135682091,6.07,1594.6,1594.3,7.65187327]
[1745135684407,6.07,1594.6,1594.3,11.41525191]
[1745135684607,6.07,1594.6,1594.4,0.8121]
[1745135687191,6.07,1594.6,1594.3,5.802]
[1745135687376,6.07,1594.6,1594.4,0.7916]
[1745135688916,0.47972299,1595.1,1594.8,0.7916]
[1745135688917,6.26932802,1595.1,1594.8,0.7916]
[1745135689129,6.8718,1595.0,1594.8,5.801]
[1745135689713,6.07,1595.0,1594.8,5.801]
[1745135690416,6.07,1595.0,1594.8,7.1819]
[1745135691083,12.3396329,1595.0,1594.8,6.3811]
[1745135691279,12.3396329,1595.0,1594.8,5.801]
[1745135693394,13.1295329,1595.0,1594.8,5.801]
[1745135693615,6.26998557,1594.9,1594.8,5.801]
[1745135693932,6.27050825,1594.8,1594.5,0.8008]
[1745135694128,6.27050825,1594.8,1594.6,5.8]
[1745135694330,6.27077193,1594.7,1594.6,5.8]
[1745135694533,6.27060611,1594.8,1594.6,5.8]
[1745135696731,6.27060611,1594.8,1594.6,6.46008]
[1745135697624,6.27060611,1594.8,1594.6,5.8]
[1745135698604,12.54129345,1594.8,1594.6,5.8]
[1745135698946,12.34060611,1594.8,1594.6,5.8]
[1745135700340,6.07,1594.8,1594.6,5.8]
[1745135700638,12.34038544,1594.8,1594.6,5.8]
[1745135700811,6.07,1594.8,1594.6,5.8]
[1745135701122,12.34039666,1594.8,1594.6,5.8]
[1745135701300,6.07,1594.8,1594.6,5.8]
[1745135701500,6.07,1594.8,1594.6,6.836366]
[1745135702099,12.3405205,1594.8,1594.6,6.836366]
[1745135702303,12.3405205,1594.8,1594.6,5.8]
[1745135704015,18.61123882,1594.8,1594.6,5.8]
[1745135704217,12.3405205,1594.8,1594.6,5.8]
[1745135704832,6.27077193,1594.7,1594.6,5.8]
[1745135705241,6.27077193,1594.7,1594.6,5.792]
[1745135706740,0.7692,1594.7,1594.4,0.65936]
[1745135706928,0.7692,1594.7,1594.3,54.5021]
[1745135706929,6.27169586,1594.5,1594.3,54.5021]
[1745135707444,12.5435601,1594.5,1594.3,54.5021]
[1745135707948,6.27169586,1594.5,1594.3,60.2941]
[1745135709138,6.27195183,1594.4,1594.3,60.2941]
[1745135709340,6.27182815,1594.5,1594.3,54.5021]
[1745135709910,12.54371024,1594.5,1594.3,54.5021]
[1745135710407,6.27182815,1594.5,1594.3,60.2941]
[1745135710605,12.34182815,1594.5,1594.3,60.2941]
[1745135710908,18.61373872,1594.5,1594.3,60.2941]
[1745135711848,18.61373872,1594.5,1594.3,54.5021]
[1745135712048,18.61373872,1594.5,1594.3,60.2941]
[1745135712350,12.34182815,1594.5,1594.3,60.2941]
[1745135713535,6.27195183,1594.4,1594.3,60.2941]
[1745135713844,6.27195183,1594.4,1594.3,54.5021]
[1745135714009,6.27195183,1594.4,1594.3,60.2941]
[1745135714750,12.34182815,1594.5,1594.3,60.2941]
[1745135715046,18.61369932,1594.5,1594.3,60.2941]
[1745135715449,12.34182815,1594.5,1594.3,60.2941]
[1745135715634,18.61372889,1594.5,1594.3,60.2941]
[1745135715949,6.27195183,1594.4,1594.3,60.2941]
[1745135716108,12.34182815,1594.5,1594.3,60.2941]
[1745135716309,12.34182815,1594.5,1594.3,54.5021]
[1745135716524,18.61371072,1594.5,1594.3,60.2941]
[1745135716948,12.34182815,1594.5,1594.3,60.2941]
[1745135717450,18.61371599,1594.5,1594.3,60.2941]
[1745135718811,6.27195183,1594.4,1594.3,60.2941]
[1745135718958,12.34182815,1594.5,1594.3,59.533]
[1745135719615,18.61369544,1594.5,1594.3,59.533]
[1745135720146,12.34182815,1594.5,1594.3,59.533]
[1745135720450,18.61369421,1594.5,1594.3,59.533]
[1745135720748,12.34182815,1594.5,1594.3,65.56551]
[1745135722255,6.07,1594.5,1594.4,0.7987]
[1745135722636,6.07,1594.5,1594.4,3.7987]
[1745135723237,6.27056682,1594.8,1594.5,4.5615866]
[1745135723529,6.27056682,1594.8,1594.5,0.7987]
[1745135723858,6.27056682,1594.8,1594.5,1.56114208]
[1745135724039,6.27056682,1594.8,1594.6,0.7987]
[1745135724644,6.27056682,1594.8,1594.7,5.792]
[1745135724852,6.2701342,1594.9,1594.7,5.792]
[1745135728060,12.33983935,1595.0,1594.7,5.792]
[1745135728262,12.33983935,1595.0,1594.7,6.83360849]
[1745135728667,18.60981258,1595.0,1594.7,6.83360849]
[1745135729774,6.27001575,1594.9,1594.7,6.83360849]
[1745135731072,12.33983935,1595.0,1594.7,6.83360849]
[1745135731239,18.60976419,1595.0,1594.7,6.83360849]
[1745135731441,6.26999341,1594.9,1594.7,6.83360849]
[1745135731777,12.33983935,1595.0,1594.7,6.83360849]
[1745135732073,12.33983935,1595.0,1594.8,0.8141]
[1745135734365,6.26881548,1595.2,1595.0,0.45760076]
[1745135734670,6.26881548,1595.2,1595.1,5.784]
[1745135737480,12.53793711,1595.2,1594.9,0.8141]
[1745135737685,6.26881548,1595.2,1595.1,5.784]
[1745135738650,7.07941548,1595.2,1595.1,5.784]
[1745135739078,7.07941548,1595.2,1594.8,5.784]
[1745135739079,6.27015538,1594.9,1594.8,5.784]
[1745135739580,6.26971493,1595.0,1594.8,5.784]
[1745135741680,6.26971493,1595.0,1594.9,5.783]
[1745135742677,7.06921493,1595.0,1594.9,5.783]
[1745135743091,6.27025,1594.9,1594.7,0.798]
[1745135743287,6.27025,1594.9,1594.7,5.783]
[1745135743691,6.27037873,1594.8,1594.7,5.783]
[1745135744055,6.27025,1594.9,1594.7,5.783]
[1745135744682,6.27037873,1594.8,1594.7,5.783]
[1745135745778,6.27037873,1594.8,1594.7,5.784]
[1745135747397,12.54046587,1594.9,1594.7,6.3624]
[1745135747562,6.27037873,1594.8,1594.7,5.784]
[1745135748838,6.27096268,1594.7,1594.5,0.798]
[1745135748972,6.27096268,1594.7,1594.6,5.784]
[1745135755786,6.27037873,1594.8,1594.6,5.784]
[1745135760081,6.27038043,1594.8,1594.6,5.784]
[1745135760277,6.27038043,1594.8,1594.6,6.74847077]
[1745135760809,6.27038043,1594.8,1594.6,0.96447077]
[1745135761109,6.27060727,1594.8,1594.7,5.784]
[1745135761807,12.340162,1594.9,1594.7,6.5605]
[1745135762715,18.61053957,1594.9,1594.7,6.5605]
[1745135763016,12.340162,1594.9,1594.7,6.5605]
[1745135764285,18.61044657,1594.9,1594.7,6.5605]
[1745135764485,12.340162,1594.9,1594.7,6.5605]
[1745135767516,6.27037873,1594.8,1594.5,0.06270765]
[1745135767816,12.54103754,1594.8,1594.6,5.777]
[1745135768010,6.27037873,1594.8,1594.6,5.777]
[1745135768719,12.54107975,1594.8,1594.6,5.777]
[1745135768915,6.27037873,1594.8,1594.6,5.777]
[1745135769089,12.54105922,1594.8,1594.6,5.777]
[1745135770499,6.27037873,1594.8,1594.6,5.777]
[1745135770699,6.27037873,1594.8,1594.6,6.50060755]
[1745135774428,12.34019273,1594.9,1594.6,6.50060755]
[1745135774615,18.61052399,1594.9,1594.6,6.50060755]
[1745135774797,12.34019273,1594.9,1594.6,6.50060755]
[1745135774995,18.61051537,1594.9,1594.6,6.50060755]
[1745135775524,18.61050075,1594.9,1594.6,6.50060755]
[1745135775729,6.270389,1594.8,1594.6,6.50060755]
[1745135775925,6.270389,1594.8,1594.7,0.65006075]
[1745135776130,6.270389,1594.8,1594.6,6.50060755]
[1745135776703,12.34019273,1594.9,1594.7,0.7578]
[1745135778317,6.07,1594.9,1594.7,0.7578]
[1745135779225,12.33999112,1594.9,1594.7,0.7578]
[1745135781639,6.07,1594.9,1594.7,0.8205007]
[1745135782927,6.07,1594.9,1594.7,1.92886598]
[1745135783840,12.34004657,1594.9,1594.7,1.86616528]
[1745135784136,6.27004657,1594.9,1594.7,1.86616528]
[1745135784731,12.33981363,1595.0,1594.7,1.86616528]
[1745135786041,6.26999957,1594.9,1594.7,1.86616528]
[1745135786829,6.26999957,1594.9,1594.8,5.776]
[1745135790812,6.27059532,1594.8,1594.6,0.7626]
[1745135791042,6.27059532,1594.8,1594.7,5.776]
[1745135799056,6.27059532,1594.8,1594.4,7.52564448]
[1745135799219,6.27059532,1594.8,1594.7,5.768]
[1745135801155,7.05639532,1594.8,1594.7,5.768]
[1745135802650,6.27059532,1594.8,1594.7,5.768]
[1745135810459,6.27016253,1594.9,1594.7,6.42106]
[1745135810828,12.54051962,1594.9,1594.7,6.42106]
[1745135811155,6.27037873,1594.8,1594.7,5.768]
[1745135823853,7.06577873,1594.8,1594.7,5.768]
[1745135827989,13.13577873,1594.8,1594.7,5.768]
[1745135831772,12.34037873,1594.8,1594.7,5.768]
[1745135838498,13.10177873,1594.8,1594.7,5.768]
[1745135839902,6.271237,1594.6,1594.5,5.761]
[1745135846428,6.27080426,1594.7,1594.5,6.5892]
[1745135846608,18.61125641,1594.8,1594.5,6.5892]
[1745135846977,6.27077794,1594.7,1594.5,6.5892]
[1745135847271,6.27077794,1594.7,1594.6,0.65892]
[1745135847487,12.34053153,1594.8,1594.6,0.65892]
[1745135848309,6.27077193,1594.7,1594.6,0.65892]
[1745135848678,18.61125469,1594.8,1594.6,0.65892]
[1745135848911,6.27077193,1594.7,1594.6,0.65892]
[1745135850004,12.33898818,1595.2,1594.7,0.7948]
[1745135850212,6.27026958,1594.9,1594.7,0.7948]
[1745135850416,6.26943703,1595.1,1594.7,0.7948]
[1745135850590,12.53896169,1595.1,1594.8,0.7948]
[1745135850791,6.26959247,1595.0,1594.9,5.761]
[1745135853310,6.26959247,1595.0,1594.9,6.5558]
[1745135853511,6.26959247,1595.0,1594.9,5.761]
[1745135854011,6.26959247,1595.0,1594.9,6.5558]
[1745135854205,6.07,1595.2,1594.9,7.21138]
[1745135854406,6.26910593,1595.2,1594.9,7.21138]
[1745135854610,6.26910593,1595.2,1594.9,7.27407127]
[1745135854907,12.33860921,1595.3,1595.0,0.7948]
[1745135855591,6.26882137,1595.2,1595.0,0.7948]
[1745135855791,12.33863145,1595.3,1595.0,1.515938]
[1745135856012,6.26908633,1595.2,1595.0,0.7948]
[1745135856202,6.26908633,1595.2,1595.0,0.8574893]
[1745135857088,6.26908633,1595.2,1595.0,0.7948]
[1745135858831,12.53825079,1595.2,1595.0,0.7948]
[1745135859007,12.53822587,1595.2,1595.0,0.7948]
[1745135859208,6.26908633,1595.2,1595.0,0.7948]
[1745135859506,12.53820865,1595.2,1595.0,0.7948]
[1745135859716,12.33864324,1595.3,1595.0,1.515938]
[1745135859902,12.33864324,1595.3,1595.0,4.515938]
[1745135860101,6.26883222,1595.2,1595.0,4.515938]
[1745135860429,18.6073634,1595.3,1595.0,4.515938]
[1745135860722,12.33864324,1595.3,1595.0,4.515938]
[1745135860933,6.26884074,1595.2,1595.0,4.515938]
[1745135862328,12.33858354,1595.3,1595.1,0.4515938]
[1745135862508,12.33858354,1595.3,1595.0,4.57862598]
[1745135862995,18.60730532,1595.3,1595.0,4.57862598]
[1745135863332,12.33858354,1595.3,1595.0,7.54556134]
[1745135863533,12.33858354,1595.3,1595.1,0.7532]
[1745135863830,6.07,1595.3,1595.1,0.7532]
[1745135864001,6.07,1595.3,1595.1,4.58307613]
[1745135865029,12.33844636,1595.3,1595.1,4.58307613]
[1745135867630,18.60715039,1595.3,1595.1,4.58307613]
[1745135867935,6.26880641,1595.2,1595.1,3.0]
[1745135869244,6.07,1595.3,1595.1,3.0]
[1745135869410,6.26880641,1595.2,1595.1,3.0]
[1745135870838,6.26880641,1595.2,1595.1,3.7775]
[1745135871242,12.33845681,1595.3,1595.1,3.7775]
[1745135871405,6.26880641,1595.2,1595.1,3.7775]
[1745135871609,12.33845681,1595.3,1595.1,4.2273638]
[1745135874343,12.33845681,1595.3,1595.1,3.7775]
[1745135876111,18.60725431,1595.3,1595.1,3.7775]
[1745135876459,12.33845681,1595.3,1595.2,5.75]
[1745135877841,13.13995681,1595.3,1595.2,5.75]
[1745135879438,12.33845681,1595.3,1595.2,5.75]
[1745135881721,12.33845681,1595.3,1595.2,6.5744]
[1745135882849,12.33845681,1595.3,1595.2,5.75]
[1745135884630,12.33845681,1595.3,1595.2,6.5744]
[1745135885355,12.33841346,1595.3,1595.2,6.5744]
[1745135891507,6.07,1595.3,1595.2,6.5744]
[1745135891976,12.33841346,1595.3,1595.2,6.5744]
[1745135892773,6.07,1595.3,1595.2,6.5744]
[1745135892936,6.07,1595.3,1595.2,7.23184]
[1745135894337,12.33841346,1595.3,1595.2,5.75]
[1745135894537,13.14571346,1595.3,1595.2,5.75]
[1745135894941,12.33841346,1595.3,1595.2,5.75]
[1745135895141,6.07,1595.3,1595.2,5.75]
[1745135895351,6.07,1595.3,1595.2,6.40722]